bitfinex-derivatives/quotes_BTCF0:USTF0_20250912
["timestamp","ask_amount","ask_price","bid_price","bid_amount"]
[1757716517120,1.84425433,116150.0,116140.0,0.002]
[1757716517311,1.84425433,116150.0,116140.0,0.11210349]
[1757716517718,1.84425433,116150.0,116140.0,0.002]
[1757716518017,1.84425433,116150.0,116140.0,0.11210349]
[1757716519920,1.84425433,116150.0,116140.0,0.002]
[1757716521321,1.89065579,116150.0,116140.0,0.002]
[1757716521518,2.00075928,116150.0,116140.0,0.002]
[1757716525325,1.96982728,116150.0,116140.0,0.002]
[1757716525822,1.95440596,116150.0,116140.0,0.002]
[1757716526219,1.89070393,116150.0,116140.0,0.002]
[1757716528627,1.03342393,116150.0,116140.0,0.002]
[1757716528830,1.88898393,116150.0,116140.0,0.002]
[1757716529426,1.88898393,116150.0,116140.0,0.11210349]
[1757716529931,1.88898393,116150.0,116140.0,0.002]
[1757716531631,1.66877695,116150.0,116140.0,0.002]
[1757716531818,1.88898393,116150.0,116140.0,0.002]
[1757716533733,1.99908742,116150.0,116140.0,0.002]
[1757716534632,1.66877695,116150.0,116140.0,0.002]
[1757716534826,1.99908742,116150.0,116140.0,0.002]
[1757716535727,1.96810728,116150.0,116140.0,0.002]
[1757716538235,1.85800379,116150.0,116140.0,0.002]
[1757716539235,1.85800379,116150.0,116140.0,0.11210349]
[1757716539427,1.60800379,116150.0,116140.0,0.11210349]
[1757716545239,1.60800379,116150.0,116140.0,0.002]
[1757716545440,1.60800379,116150.0,116140.0,0.11210349]
[1757716547635,1.60800379,116150.0,116140.0,0.002]
[1757716549338,1.38779681,116150.0,116140.0,0.002]
[1757716549640,1.60800379,116150.0,116140.0,0.002]
[1757716550041,1.71810728,116150.0,116140.0,0.002]
[1757716553739,0.14628349,116120.0,116110.0,0.58100698]
[1757716554043,0.17334823,116120.0,116110.0,0.95100698]
[1757716554539,0.06324474,116120.0,116110.0,0.95100698]
[1757716555042,0.06424474,116120.0,116110.0,0.95900698]
[1757716556042,0.13150745,116120.0,116110.0,0.95900698]
[1757716556737,0.13150745,116120.0,116110.0,0.7388]
[1757716557036,0.13150745,116120.0,116110.0,0.95900698]
[1757716557242,0.17451745,116120.0,116110.0,1.06911047]
[1757716557543,0.28462094,116120.0,116110.0,0.95900698]
[1757716557737,0.28462094,116120.0,116110.0,0.59820698]
[1757716557937,0.28462094,116120.0,116110.0,0.84820698]
[1757716558344,0.28462094,116120.0,116110.0,0.628]
[1757716558545,0.64542094,116120.0,116110.0,0.73810349]
[1757716559549,0.64542094,116120.0,116110.0,0.628]
[1757716559941,0.64542094,116120.0,116110.0,0.73810349]
[1757716560140,0.75552443,116120.0,116110.0,0.378]
[1757716560335,0.86562792,116120.0,116110.0,0.008]
[1757716560738,0.89662029,116120.0,116110.0,0.008]
[1757716562249,0.86562792,116120.0,116110.0,0.008]
[1757716563352,1.14662029,116120.0,116110.0,0.008]
[1757716565351,0.81630982,116120.0,116110.0,0.008]
[1757716565654,1.99842029,116120.0,116110.0,0.008]
[1757716566051,1.96742792,116120.0,116110.0,0.008]
[1757716567247,1.99842029,116120.0,116110.0,0.008]
[1757716567446,1.14662029,116120.0,116110.0,0.008]
[1757716567647,1.99814029,116120.0,116110.0,0.008]
[1757716568855,1.14662029,116120.0,116110.0,0.008]
[1757716569257,1.99794029,116120.0,116110.0,0.008]
[1757716570357,1.9614405,116120.0,116110.0,0.008]
[1757716571057,1.9614405,116120.0,116110.0,0.005]
[1757716571262,1.93044813,116120.0,116110.0,0.005]
[1757716574362,1.9614405,116120.0,116110.0,0.005]
[1757716575063,1.66762982,116120.0,116110.0,0.005]
[1757716575252,1.9614405,116120.0,116110.0,0.005]
[1757716575450,1.1101205,116120.0,116110.0,0.005]
[1757716575665,1.9610805,116120.0,116110.0,0.005]
[1757716576464,1.9608805,116120.0,116110.0,0.005]
[1757716577664,1.98088281,116120.0,116110.0,0.005]
[1757716578161,0.88012281,116120.0,116110.0,0.005]
[1757716578464,1.40583976,116120.0,116110.0,0.40190534]
[1757716578971,1.38579745,116120.0,116110.0,0.40190534]
[1757716579162,0.53531745,116120.0,116110.0,0.40190534]
[1757716579464,1.38575745,116120.0,116110.0,0.40190534]
[1757716579963,1.02495745,116120.0,116110.0,0.40190534]
[1757716581057,0.99789271,116120.0,116110.0,0.40190534]
[1757716581263,1.02508375,116120.0,116110.0,0.40190534]
[1757716584661,1.02508375,116120.0,116110.0,0.255]
[1757716584867,1.04477192,116120.0,116110.0,0.40190534]
[1757716585865,1.04477192,116120.0,116110.0,0.255]
[1757716586058,1.04477192,116120.0,116110.0,0.40190534]
[1757716588060,1.04477192,116120.0,116110.0,0.255]
[1757716588266,1.04477192,116120.0,116110.0,0.40190534]
[1757716591169,0.19433192,116120.0,116110.0,0.40190534]
[1757716592471,0.19433192,116120.0,116110.0,0.255]
[1757716592771,0.19433192,116120.0,116110.0,0.40190534]
[1757716599375,0.19433192,116120.0,116110.0,0.15190534]
[1757716600477,0.34123726,116120.0,116110.0,0.15190534]
[1757716602673,0.8489426,116120.0,116110.0,0.005]
[1757716602885,1.0989426,116120.0,116110.0,0.005]
[1757716603473,1.12993497,116120.0,116110.0,0.005]
[1757716605781,0.83612429,116120.0,116110.0,0.005]
[1757716606278,1.12993497,116120.0,116110.0,0.005]
[1757716608679,1.17642353,116120.0,116110.0,0.005]
[1757716609191,2.02370353,116120.0,116110.0,0.005]
[1757716609984,1.97721497,116120.0,116110.0,0.005]
[1757716610175,1.97713497,116120.0,116110.0,0.005]
[1757716610481,1.12993497,116120.0,116110.0,0.005]
[1757716610873,1.97697497,116120.0,116110.0,0.005]
[1757716611077,1.83006963,116120.0,116110.0,0.005]
[1757716611376,0.73302963,116120.0,116110.0,0.005]
[1757716611576,1.58006963,116120.0,116110.0,0.005]
[1757716614384,1.72697497,116120.0,116110.0,0.005]
[1757716614888,1.43316429,116120.0,116110.0,0.005]
[1757716615288,1.72697497,116120.0,116110.0,0.005]
[1757716615594,1.43316429,116120.0,116110.0,0.005]
[1757716615787,1.72697497,116120.0,116110.0,0.005]
[1757716617791,1.57934963,116120.0,116110.0,0.005]
[1757716620380,1.43244429,116120.0,116110.0,0.005]
[1757716620585,1.57934963,116120.0,116110.0,0.005]
[1757716620792,1.72625497,116120.0,116110.0,0.005]
[1757716622095,1.77274353,116120.0,116110.0,0.005]
[1757716623290,1.74175116,116120.0,116110.0,0.005]
[1757716629290,1.44794048,116120.0,116110.0,0.005]
[1757716629598,1.74175116,116120.0,116110.0,0.005]
[1757716632397,1.77847124,116120.0,116110.0,0.005]
[1757716634702,1.77847124,116120.0,116080.0,0.58115384]
[1757716634703,0.03644,116090.0,116080.0,0.58115384]
[1757716634901,0.17380796,116090.0,116080.0,0.64097692]
[1757716635398,0.30366622,116090.0,116080.0,0.17]
[1757716635597,0.1934893,116090.0,116080.0,0.28017692]
[1757716636799,0.1944893,116090.0,116080.0,0.28517692]
[1757716637502,0.2374493,116090.0,116080.0,0.28317692]
[1757716638903,0.24625157,116090.0,116080.0,0.28317692]
[1757716639106,0.24625157,116090.0,116080.0,0.53317692]
[1757716639298,0.35642849,116090.0,116080.0,0.173]
[1757716639900,0.35642849,116090.0,116080.0,0.28317692]
[1757716640202,0.35642849,116090.0,116080.0,0.173]
[1757716641705,0.35642849,116090.0,116080.0,0.28317692]
[1757716642205,0.35642849,116090.0,116080.0,0.173]
[1757716644706,0.33674715,116090.0,116080.0,0.173]
[1757716645608,0.11639331,116090.0,116080.0,0.173]
[1757716645808,0.33674715,116090.0,116080.0,0.173]
[1757716646005,0.33674715,116090.0,116080.0,0.62317692]
[1757716647808,0.22657023,116090.0,116080.0,0.62317692]
[1757716650509,0.33674715,116090.0,116080.0,0.513]
[1757716650708,0.33674715,116090.0,116080.0,0.62317692]
[1757716652016,0.44692407,116090.0,116080.0,0.163]
[1757716652211,0.33674715,116090.0,116080.0,0.163]
[1757716652403,0.44692407,116090.0,116080.0,0.163]
[1757716654512,0.80772407,116090.0,116080.0,0.003]
[1757716654709,0.44692407,116090.0,116080.0,0.003]
[1757716655011,0.11639331,116090.0,116080.0,0.003]
[1757716655308,0.80772407,116090.0,116080.0,0.003]
[1757716656314,0.47719331,116090.0,116080.0,0.003]
[1757716656611,0.80772407,116090.0,116080.0,0.003]
[1757716658520,0.47719331,116090.0,116080.0,0.003]
[1757716658719,0.80772407,116090.0,116080.0,0.003]
[1757716663626,0.47719331,116090.0,116080.0,0.003]
[1757716663826,0.80772407,116090.0,116080.0,0.003]
[1757716667622,0.47719331,116090.0,116080.0,0.003]
[1757716667822,0.80772407,116090.0,116080.0,0.003]
[1757716669618,0.80788712,116090.0,116080.0,0.003]
[1757716670431,0.47735636,116090.0,116080.0,0.003]
[1757716670731,0.80788712,116090.0,116080.0,0.003]
[1757716670923,0.50832418,116090.0,116080.0,0.003]
[1757716671324,0.83885494,116090.0,116080.0,0.003]
[1757716671634,0.58753328,116090.0,116080.0,0.11317692]
[1757716672324,0.22673328,116090.0,116080.0,0.47397692]
[1757716672523,0.3369102,116090.0,116080.0,0.3638]
[1757716672724,0.22673328,116090.0,116080.0,0.58415384]
[1757716672926,0.22673328,116090.0,116080.0,0.47397692]
[1757716673128,0.22673328,116090.0,116080.0,0.47097692]
[1757716673326,0.22773328,116090.0,116080.0,0.47097692]
[1757716673532,0.22673328,116090.0,116080.0,0.47097692]
[1757716673832,0.22773328,116090.0,116080.0,0.47097692]
[1757716674934,0.22773328,116090.0,116080.0,0.3608]
[1757716675331,0.22773328,116090.0,116080.0,0.47097692]
[1757716676231,0.11755636,116090.0,116080.0,0.47097692]
[1757716676435,0.22773328,116090.0,116080.0,0.47097692]
[1757716679534,0.22773328,116090.0,116080.0,0.11017692]
[1757716679942,0.03628,116080.0,116070.0,0.3608]
[1757716680128,0.06363409,116080.0,116070.0,1.24133076]
[1757716680534,0.06363409,116080.0,116070.0,1.13115384]
[1757716680736,0.17381101,116080.0,116070.0,1.13115384]
[1757716681133,0.17481101,116080.0,116070.0,1.13115384]
[1757716681441,0.17481101,116080.0,116070.0,0.9108]
[1757716681640,0.17481101,116080.0,116070.0,1.13115384]
[1757716681841,0.17481101,116080.0,116070.0,0.9108]
[1757716682044,0.17481101,116080.0,116070.0,1.13115384]
[1757716682540,0.17481101,116080.0,116070.0,0.9108]
[1757716682742,0.21774101,116080.0,116070.0,0.58115384]
[1757716682942,0.21774101,116080.0,116070.0,0.81115384]
[1757716683533,0.32791793,116080.0,116070.0,0.70097692]
[1757716683742,0.0133,116070.0,116060.0,0.58115384]
[1757716684042,0.06363409,116070.0,116060.0,0.72115384]
[1757716684244,0.17381101,116070.0,116060.0,0.72115384]
[1757716684542,0.24206002,116070.0,116060.0,0.5008]
[1757716684739,0.24206002,116070.0,116060.0,0.72115384]
[1757716685045,0.24206002,116070.0,116060.0,0.61097692]
[1757716685340,0.24206002,116070.0,116060.0,0.61197692]
[1757716685942,0.24306002,116070.0,116060.0,0.61197692]
[1757716687745,0.1328831,116070.0,116060.0,0.61197692]
[1757716688043,0.24306002,116070.0,116060.0,0.61197692]
[1757716688441,0.24306002,116070.0,116060.0,0.47197692]
[1757716688642,0.24306002,116070.0,116060.0,0.7818]
[1757716688843,0.24306002,116070.0,116060.0,1.00215384]
[1757716689343,0.1328831,116070.0,116060.0,1.00215384]
[1757716689646,0.24306002,116070.0,116060.0,1.00215384]
[1757716689843,0.24306002,116070.0,116060.0,0.7818]
[1757716690046,0.24306002,116070.0,116060.0,1.00215384]
[1757716690546,0.24306002,116070.0,116060.0,0.7818]
[1757716691044,0.24306002,116070.0,116060.0,1.84083384]
[1757716691447,0.24306002,116070.0,116060.0,1.73065692]
[1757716692046,0.24306002,116070.0,116060.0,0.7818]
[1757716692248,0.24306002,116070.0,116060.0,1.73057692]
[1757716692447,0.27984845,116070.0,116060.0,1.76736535]
[1757716694151,0.27984845,116070.0,116060.0,1.6204]
[1757716694349,0.27984845,116070.0,116060.0,0.7818]
[1757716694551,0.27984845,116070.0,116060.0,1.42708535]
[1757716696453,0.27984845,116070.0,116060.0,1.28012]
[1757716696754,0.27984845,116070.0,116060.0,1.42708535]
[1757716697255,0.27984845,116070.0,116060.0,0.4418]
[1757716697448,0.2996503,116070.0,116060.0,1.27988]
[1757716697654,0.15268495,116070.0,116060.0,1.27988]
[1757716697849,0.2996503,116070.0,116060.0,1.27988]
[1757716698254,0.2996503,116070.0,116060.0,1.42684535]
[1757716701857,0.2996503,116070.0,116060.0,0.58876535]
[1757716702057,0.2996503,116070.0,116060.0,1.27944]
[1757716702264,0.2996503,116070.0,116060.0,1.42640535]
[1757716702759,0.2996503,116070.0,116060.0,1.91640535]
[1757716703458,0.2996503,116070.0,116060.0,0.9318]
[1757716703758,0.2996503,116070.0,116060.0,1.7694]
[1757716703960,0.2996503,116070.0,116060.0,1.91636535]
[1757716706058,0.15268495,116070.0,116060.0,1.91636535]
[1757716706259,0.2996503,116070.0,116060.0,1.91636535]
[1757716706463,0.15268495,116070.0,116060.0,1.91636535]
[1757716706663,0.27984845,116070.0,116060.0,1.91636535]
[1757716708467,0.1328831,116070.0,116060.0,1.91636535]
[1757716708662,0.1099031,116070.0,116060.0,1.91636535]
[1757716709569,0.25686845,116070.0,116060.0,1.91636535]
[1757716710372,0.25686845,116070.0,116060.0,1.7694]
[1757716710571,0.25686845,116070.0,116060.0,1.91636535]
[1757716711161,0.27940845,116070.0,116060.0,0.9318]
[1757716711467,0.27940845,116070.0,116060.0,1.91556535]
[1757716711871,0.27940845,116070.0,116060.0,1.7686]
[1757716712071,0.1324431,116070.0,116060.0,1.91556535]
[1757716712376,0.27940845,116070.0,116060.0,1.91556535]
[1757716713781,0.27940845,116070.0,116060.0,1.7686]
[1757716713982,0.27940845,116070.0,116060.0,1.91556535]
[1757716714178,0.27940845,116070.0,116060.0,1.07876535]
[1757716714478,0.27940845,116070.0,116060.0,1.76836]
[1757716714679,0.27940845,116070.0,116060.0,1.07876535]
[1757716714880,0.27940845,116070.0,116060.0,1.91520535]
[1757716715287,0.27940845,116070.0,116060.0,1.91516535]
[1757716717086,0.2990893,116070.0,116060.0,1.7682]
[1757716717390,0.2990893,116070.0,116060.0,1.76796]
[1757716718088,0.27940845,116070.0,116060.0,1.76796]
[1757716719392,0.27940845,116070.0,116060.0,1.91492535]
[1757716719991,0.27940845,116070.0,116060.0,1.76796]
[1757716720190,0.27940845,116070.0,116060.0,1.91492535]
[1757716721694,0.29937507,116070.0,116060.0,1.91492535]
[1757716722590,0.29937507,116070.0,116060.0,1.76796]
[1757716722991,0.29937507,116070.0,116060.0,1.91492535]
[1757716723590,0.15240972,116070.0,116060.0,1.91492535]
[1757716723895,0.29937507,116070.0,116060.0,1.91492535]
[1757716724994,0.27940845,116070.0,116060.0,1.91492535]
[1757716726290,0.1324431,116070.0,116060.0,1.91492535]
[1757716726595,0.27940845,116070.0,116060.0,1.76712]
[1757716728490,0.1324431,116070.0,116060.0,1.40632]
[1757716728689,0.1324431,116070.0,116060.0,1.55328535]
[1757716728893,0.1324431,116070.0,116060.0,1.91408535]
[1757716729601,0.27940845,116070.0,116060.0,1.91408535]
[1757716730699,0.1324431,116070.0,116060.0,1.91408535]
[1757716731296,0.1324431,116070.0,116060.0,1.76712]
[1757716731499,0.1324431,116070.0,116060.0,1.91408535]
[1757716732296,0.1324431,116070.0,116060.0,1.76712]
[1757716732503,0.25728845,116070.0,116060.0,1.91408535]
[1757716733402,0.25728845,116070.0,116060.0,1.07876535]
[1757716733700,0.25728845,116070.0,116060.0,1.91344535]
[1757716734694,0.1103231,116070.0,116060.0,1.91344535]
[1757716734906,0.25728845,116070.0,116060.0,1.91344535]
[1757716736499,0.1103231,116070.0,116060.0,1.91344535]
[1757716736801,0.25728845,116070.0,116060.0,1.91344535]
[1757716741006,0.25728845,116070.0,116060.0,1.07876535]
[1757716741303,0.25728845,116070.0,116060.0,1.91292535]
[1757716742207,0.30016845,116070.0,116060.0,1.91292535]
[1757716743207,0.30016845,116070.0,116060.0,1.76596]
[1757716743508,0.30016845,116070.0,116060.0,1.91292535]
[1757716744107,0.30016845,116070.0,116060.0,1.76596]
[1757716744308,0.30016845,116070.0,116060.0,1.91292535]
[1757716745308,0.30016845,116070.0,116060.0,1.76596]
[1757716745607,0.30016845,116070.0,116060.0,1.91292535]
[1757716750205,0.30016845,116070.0,116060.0,1.91184535]
[1757716751714,0.30016845,116070.0,116060.0,1.76488]
[1757716752017,0.30016845,116070.0,116060.0,1.91184535]
[1757716752213,0.1532031,116070.0,116060.0,1.07876535]
[1757716752414,0.30016845,116070.0,116060.0,1.91160535]
[1757716753904,0.32327845,116070.0,116060.0,1.40384]
[1757716754413,0.52732219,116070.0,116060.0,1.40384]
[1757716755218,0.41707864,116070.0,116060.0,1.40384]
[1757716755819,0.19659154,116070.0,116060.0,1.40384]
[1757716756120,0.41707864,116070.0,116060.0,1.40384]
[1757716757018,0.52732219,116070.0,116060.0,1.40348]
[1757716757312,0.55829001,116070.0,116060.0,0.571]
[1757716759318,0.58835936,116070.0,116060.0,0.571]
[1757716759520,0.91909001,116070.0,116060.0,0.571]
[1757716759911,0.88812219,116070.0,116060.0,0.571]
[1757716760111,1.16909001,116070.0,116060.0,0.571]
[1757716761422,2.00113001,116070.0,116060.0,0.571]
[1757716762006,2.00113001,116070.0,116060.0,0.001]
[1757716764512,2.01665075,116070.0,116060.0,0.001]
[1757716765715,2.04763661,116070.0,116060.0,0.001]
[1757716771527,2.02735817,116070.0,116060.0,0.001]
[1757716771729,2.04732555,116070.0,116060.0,0.001]
[1757716772028,1.7165949,116070.0,116060.0,0.001]
[1757716772332,2.04732555,116070.0,116060.0,0.001]
[1757716773630,1.7165949,116070.0,116060.0,0.001]
[1757716773822,2.04732555,116070.0,116060.0,0.001]
[1757716774129,1.21528555,116070.0,116060.0,0.001]
[1757716774331,2.04600555,116070.0,116060.0,0.001]
[1757716775129,2.04597128,116070.0,116060.0,0.001]
[1757716777133,1.21525128,116070.0,116060.0,0.001]
[1757716777321,2.04569128,116070.0,116060.0,0.001]
[1757716779330,1.79569128,116070.0,116060.0,0.001]
[1757716782134,1.46496063,116070.0,116060.0,0.001]
[1757716782327,1.76470542,116070.0,116060.0,0.001]
[1757716785532,1.7956721,116070.0,116060.0,0.001]
[1757716785735,1.46494145,116070.0,116060.0,0.001]
[1757716786031,1.7956721,116070.0,116060.0,0.001]
[1757716786429,0.9652321,116070.0,116060.0,0.001]
[1757716786732,1.7949121,116070.0,116060.0,0.001]
[1757716787232,1.76394542,116070.0,116060.0,0.001]
[1757716787935,1.79491906,116070.0,116060.0,0.001]
[1757716788439,1.76394542,116070.0,116060.0,0.001]
[1757716793032,1.43321477,116070.0,116060.0,0.001]
[1757716793244,1.76416066,116070.0,116060.0,0.001]
[1757716793433,1.76406106,116070.0,116060.0,0.001]
[1757716796131,1.43333041,116070.0,116060.0,0.001]
[1757716796334,1.76406106,116070.0,116060.0,0.001]
[1757716797039,1.76469604,116070.0,116060.0,0.001]
[1757716798829,0.03616,116040.0,116030.0,0.3608]
[1757716799042,0.28421643,116040.0,116030.0,0.5608]
[1757716799639,0.06372933,116040.0,116030.0,0.67104355]
[1757716799934,0.28421643,116040.0,116030.0,0.67104355]
[1757716800537,0.07252895,116040.0,116030.0,0.67104355]
[1757716800740,0.1827725,116040.0,116030.0,0.67104355]
[1757716801042,0.29301605,116040.0,116030.0,0.5608]
[1757716801433,0.29301605,116040.0,116030.0,0.67104355]
[1757716801634,0.29301605,116040.0,116030.0,0.67304355]
[1757716801837,0.4032596,116040.0,116030.0,0.452]
[1757716802539,0.4461096,116040.0,116030.0,0.452]
[1757716802734,0.46688843,116040.0,116030.0,0.452]
[1757716802931,0.13615778,116040.0,116030.0,0.452]
[1757716803139,0.46688843,116040.0,116030.0,0.452]
[1757716803339,0.46688843,116040.0,116030.0,0.252]
[1757716803739,0.46688843,116040.0,116030.0,0.002]
[1757716803946,0.82768843,116040.0,116030.0,0.002]
[1757716804143,0.82768843,116040.0,116030.0,0.00192]
[1757716812339,0.49695778,116040.0,116030.0,0.00192]
[1757716812635,0.82768843,116040.0,116030.0,0.00192]
[1757716813242,0.49695778,116040.0,116030.0,0.00192]
[1757716813447,0.82768843,116040.0,116030.0,0.00192]
[1757716814351,0.79116816,116040.0,116030.0,0.00192]
[1757716814543,0.79116816,116040.0,116000.0,2.16262519]
[1757716814744,0.0139,116010.0,116000.0,2.76262519]
[1757716814944,0.18326519,116010.0,116000.0,0.1]
[1757716815143,0.18326519,116010.0,116000.0,0.5008]
[1757716815337,0.18326519,116010.0,116000.0,0.14]
[1757716815544,0.21081481,116010.0,116000.0,0.5008]
[1757716816751,0.18326519,116010.0,116000.0,0.5008]
[1757716816944,0.21080506,116010.0,116000.0,0.5018]
[1757716817338,0.03716,116010.0,116000.0,0.5018]
[1757716817645,0.18426519,116010.0,116000.0,0.5018]
[1757716818051,0.10651916,116010.0,116000.0,0.5018]
[1757716818351,0.25362435,116010.0,116000.0,0.5018]
[1757716818544,0.25362435,116010.0,116000.0,0.64890519]
[1757716818950,0.28114875,116010.0,116000.0,0.5018]
[1757716819149,0.28114875,116010.0,116000.0,0.50176]
[1757716820253,0.25362435,116010.0,116000.0,0.50176]
[1757716820453,0.10651916,116010.0,116000.0,0.50176]
[1757716820641,0.25362435,116010.0,116000.0,0.50176]
[1757716822160,0.28113626,116010.0,116000.0,0.50176]
[1757716822350,0.25362435,116010.0,116000.0,0.50176]
[1757716822554,0.10651916,116010.0,116000.0,0.50176]
[1757716822745,0.25362435,116010.0,116000.0,0.50176]
[1757716824658,0.10651916,116010.0,116000.0,0.50176]
[1757716824855,0.25362435,116010.0,116000.0,0.50176]
[1757716825150,0.10651916,116010.0,116000.0,0.14096]
[1757716825355,0.25362435,116010.0,116000.0,0.14096]
[1757716826256,0.28113217,116010.0,116000.0,0.14096]
[1757716826855,0.13402698,116010.0,116000.0,0.14096]
[1757716827057,0.28113217,116010.0,116000.0,0.14096]
[1757716830849,1.86507736,116010.0,116000.0,0.001]
[1757716831848,1.99117211,116010.0,116000.0,0.001]
[1757716833659,2.06871521,116010.0,116000.0,0.001]
[1757716834463,2.03769797,116010.0,116000.0,0.001]
[1757716835048,1.78753797,116010.0,116000.0,0.001]
[1757716835460,1.81846487,116010.0,116000.0,0.001]
[1757716835861,0.99258487,116010.0,116000.0,0.001]
[1757716836062,1.81830487,116010.0,116000.0,0.001]
[1757716836262,1.78737797,116010.0,116000.0,0.001]
[1757716836761,1.74085211,116010.0,116000.0,0.001]
[1757716837360,1.78737797,116010.0,116000.0,0.001]
[1757716841263,1.74085211,116010.0,116000.0,0.001]
[1757716841859,0.91513211,116010.0,116000.0,0.001]
[1757716842061,1.78584533,116010.0,115980.0,0.3608]
[1757716842265,0.18213519,115990.0,115980.0,0.9208]
[1757716842466,0.20964301,115990.0,115980.0,1.06790519]
[1757716842667,0.20964301,115990.0,115980.0,0.9208]
[1757716843059,0.25247301,115990.0,115980.0,0.9208]
[1757716843260,0.25247301,115990.0,115980.0,0.9228]
[1757716843466,0.25247301,115990.0,115980.0,1.06990519]
[1757716843955,0.25247301,115990.0,115980.0,0.9228]
[1757716844467,0.25247301,115990.0,115980.0,0.70910519]
[1757716844766,0.25347301,115990.0,115980.0,0.70910519]
[1757716845472,0.25347301,115990.0,115980.0,0.562]
[1757716846468,0.26231395,115990.0,115980.0,0.562]
[1757716848168,0.29324134,115990.0,115980.0,0.562]
[1757716849272,0.29324134,115990.0,115980.0,0.56196]
[1757716849661,0.14613615,115990.0,115980.0,0.56196]
[1757716849864,0.29324134,115990.0,115980.0,0.56196]
[1757716851171,0.14613615,115990.0,115980.0,0.56196]
[1757716851367,0.29324134,115990.0,115980.0,0.56196]
[1757716851972,0.14613615,115990.0,115980.0,0.56196]
[1757716852177,0.29324134,115990.0,115980.0,0.56196]
[1757716855478,0.14613615,115990.0,115980.0,0.56196]
[1757716855673,0.29324134,115990.0,115980.0,0.56196]
[1757716856181,0.65404134,115990.0,115980.0,0.56196]
[1757716858584,0.80114653,115990.0,115980.0,0.56196]
[1757716858788,0.50693615,115990.0,115980.0,0.242]
[1757716859088,0.80114653,115990.0,115980.0,0.242]
[1757716859281,0.81661236,115990.0,115980.0,0.242]
[1757716860289,0.70049477,115990.0,115980.0,0.242]
[1757716860580,0.66950717,115990.0,115980.0,0.242]
[1757716860780,1.06661236,115990.0,115980.0,0.242]
[1757716861183,1.06661236,115990.0,115980.0,0.24]
[1757716861384,1.06661236,115990.0,115980.0,0.241]
[1757716861882,0.91950717,115990.0,115980.0,0.241]
[1757716862486,0.77240198,115990.0,115980.0,0.241]
[1757716862688,1.06661236,115990.0,115980.0,0.241]
[1757716863389,0.91950717,115990.0,115980.0,0.241]
[1757716867389,1.74382717,115990.0,115980.0,0.241]
[1757716868090,1.77482888,115990.0,115980.0,0.241]
[1757716868589,1.74382717,115990.0,115980.0,0.241]
[1757716870187,1.89093236,115990.0,115980.0,0.241]
[1757716871290,1.92193033,115990.0,115980.0,0.241]
[1757716873397,1.62771995,115990.0,115980.0,0.241]
[1757716873894,1.77482514,115990.0,115980.0,0.241]
[1757716874395,1.91255295,115990.0,115980.0,0.241]
[1757716880503,1.58132673,115990.0,115980.0,0.241]
[1757716880697,1.91255295,115990.0,115980.0,0.241]
[1757716880995,1.58132673,115990.0,115980.0,0.241]
[1757716881192,1.91255295,115990.0,115980.0,0.241]
[1757716885694,1.58132673,115990.0,115980.0,0.241]
[1757716885905,1.91255295,115990.0,115980.0,0.241]
[1757716886197,1.91175295,115990.0,115980.0,0.241]
[1757716887494,1.58052673,115990.0,115980.0,0.241]
[1757716887693,1.91175295,115990.0,115980.0,0.241]
[1757716889491,1.95814617,115990.0,115980.0,0.241]
[1757716889692,1.95794617,115990.0,115980.0,0.241]
[1757716890096,1.91155295,115990.0,115980.0,0.241]
[1757716890701,0.75700673,115990.0,115980.0,0.241]
[1757716890894,1.91155295,115990.0,115980.0,0.241]
[1757716891095,1.08823295,115990.0,115980.0,0.241]
[1757716891400,1.91147295,115990.0,115980.0,0.241]
[1757716892503,1.58024673,115990.0,115980.0,0.241]
[1757716892701,1.91147295,115990.0,115980.0,0.241]
[1757716894002,1.88047498,115990.0,115980.0,0.241]
[1757716898898,1.91147295,115990.0,115980.0,0.241]
[1757716899298,1.66147295,115990.0,115980.0,0.241]
[1757716899698,1.70786617,115990.0,115980.0,0.241]
[1757716900205,1.37663995,115990.0,115980.0,0.241]
[1757716900406,1.70786617,115990.0,115980.0,0.241]
[1757716901506,1.66147295,115990.0,115980.0,0.241]
[1757716902308,1.70786617,115990.0,115980.0,0.241]
[1757716903408,1.70786617,115990.0,115980.0,0.001]
[1757716906706,1.6768682,115990.0,115980.0,0.001]
[1757716912217,1.34564198,115990.0,115980.0,0.001]
[1757716912405,1.6768682,115990.0,115980.0,0.001]
[1757716915217,1.34564198,115990.0,115980.0,0.001]
[1757716915416,1.6768682,115990.0,115980.0,0.001]
[1757716922825,1.34564198,115990.0,115980.0,0.001]
[1757716923011,1.6768682,115990.0,115980.0,0.001]
[1757716923216,1.66150762,115990.0,115980.0,0.001]
[1757716924917,1.70790084,115990.0,115980.0,0.001]
[1757716925318,1.70622084,115990.0,115980.0,0.001]
[1757716925523,1.3286014,115990.0,115980.0,0.001]
[1757716925717,1.65982762,115990.0,115980.0,0.001]
[1757716926322,1.51830624,115990.0,115980.0,0.11140874]
[1757716926523,0.69682624,115990.0,115980.0,0.11140874]
[1757716926711,0.93660876,115990.0,115980.0,0.11140874]
[1757716926916,0.11520876,115990.0,115980.0,0.11140874]
[1757716927117,1.15738624,115990.0,115980.0,0.11140874]
[1757716927422,1.51818624,115990.0,115980.0,0.11140874]
[1757716927814,1.29736876,115990.0,115980.0,0.11140874]
[1757716928126,1.62859498,115990.0,115980.0,0.001]
[1757716929529,1.29724876,115990.0,115980.0,0.001]
[1757716929720,1.62847498,115990.0,115980.0,0.001]
[1757716930814,1.29724876,115990.0,115980.0,0.001]
[1757716931018,1.62847498,115990.0,115980.0,0.001]
[1757716931727,1.29724876,115990.0,115980.0,0.001]
[1757716931927,1.62847498,115990.0,115980.0,0.001]
[1757716935827,1.29724876,115990.0,115980.0,0.001]
[1757716936025,1.62847498,115990.0,115980.0,0.001]
[1757716936321,1.29724876,115990.0,115980.0,0.001]
[1757716936525,1.44444583,115990.0,115980.0,0.001]
[1757716938534,1.29724876,115990.0,115980.0,0.001]
[1757716938724,1.44444583,115990.0,115980.0,0.001]
[1757716940728,1.47547847,115990.0,115980.0,0.001]
[1757716940932,0.11520876,115990.0,115980.0,0.14819707]
[1757716941130,0.11520876,115990.0,115980.0,0.15819707]